Cogmind - Beta 13 @@@ ROGUE MODE // 2024.05.05 @ 17:19:19 Player: BrainTooSmol Result: Destroyed by D-53 Grenadier with Mini Grenade Launcher Performance ------------- Evolutions (1) 500 Regions Visited (4) 800 Robots Destroyed (70) 350 Value Destroyed (1486) 1486 Prototype IDs (1) 20 Alien Tech Used (0) 0 Bonus (210) 210 TOTAL SCORE: 3366 Bonus ------- Follower Combat Kills 210 Cogmind --------- Core Integrity 0/400 Matter 237/300 Energy 100/100 System Corruption 1% Temperature Cool (0) Movement Core (750) Ox14 Location -9/Mines Parts ------- > --- POWER (1) -------- (None) > --- PROPULSION (2) --- (None) > --- UTILITY (4) ------ High-capacity Storage Unit > --- WEAPON (2) ------- Maul > --- INVENTORY (20) --- VTOL Module Improved Flight Unit Improved Flight Unit Small Storage Unit Advanced Weight Redist. System Improved Sensor Array Improved Sensor Array Hacking Suite Hacking Suite Hacking Suite Hacking Suite Hacking Suite Hacking Suite Mining Laser Peak State ------------ > --- POWER ------------ Light Nuclear Core > --- PROPULSION ------- Light Treads Improved Flight Unit > --- UTILITY ---------- High-capacity Storage Unit Structural Scanner Improved Sensor Array Seismic Detector > --- WEAPON ----------- Heavy Assault Rifle Maul > --- INVENTORY -------- Light Treads Wheel Flight Unit Flight Unit VTOL Module Small Storage Unit Advanced Weight Redist. System Improved Sensor Array Hacking Suite Hacking Suite Hacking Suite Hacking Suite Hacking Suite Hacking Suite Assault Rifle Assault Rifle Assault Rifle Light Assault Rifle Light Assault Rifle Mini Grenade Launcher [Rating: 20] Favorites ----------- Power Light Nuclear Core Engine Light Ion Engine Power Core Light Nuclear Core Propulsion Light Treads Treads Light Treads Leg Aluminum Leg Wheel Wheel Flight Unit Improved Flight Unit Utility Seismic Detector Device Seismic Detector Storage High-capacity Storage Unit Protection Light Armor Plating Weapon Assault Rifle Ballistic Gun Assault Rifle Launcher Mini Grenade Launcher Impact Weapon Maul Build | -11 -10 -10 -9 -9 ------- Run | Yrd Mat Min Mat Min Slots Evolved 2 | . . . 2 . Power . | . . . . . Propulsion . | . . . . . Utility 2 | . . . 2 . Weapon . | . . . . . Parts Attached 51 | 1 12 2 27 9 Power 2 | . 1 . 1 . Engine 1 | . 1 . . . Core 1 | . . . 1 . Reactor . | . . . . . Propulsion 12 | . 6 . 3 3 Treads 3 | . 2 . . 1 Leg . | . . . . . Wheel 8 | . 4 . 2 2 Hover . | . . . . . Flight 1 | . . . 1 . Utility 7 | 1 2 . 4 . Device 4 | 1 . . 3 . Storage 2 | . 2 . . . Processor . | . . . . . Hackware . | . . . . . Protection 1 | . . . 1 . Artifact . | . . . . . Weapon 30 | . 3 2 19 6 Energy Gun . | . . . . . Energy Cannon . | . . . . . Ballistic Gun 18 | . 3 1 11 3 Ballistic Cannon . | . . . . . Launcher 5 | . . 1 2 2 Special Weapon . | . . . . . Impact Weapon 7 | . . . 6 1 Slashing Weapon . | . . . . . Piercing Weapon . | . . . . . Special Melee Weapon . | . . . . . Unidentified Prototypes 1 | . . . 1 . Parts Lost 15 | . 3 . . 12 Power 2 | . 1 . . 1 Propulsion 5 | . 2 . . 3 Utility 3 | . . . . 3 Weapon 5 | . . . . 5 Highest Loss Streak 10 | . 2 . . 10 To Critical Strikes . | . . . . . Average Slot Usage (%) 94 | . 99 100 98 81 Engine 5 | . 13 14 1 . Core 4 | . . . 9 2 Treads 10 | . 5 14 11 10 Leg 1 | . 8 . . . Wheel 12 | . 13 14 10 10 Device 19 | . 14 14 28 13 Storage 12 | . 14 14 11 11 Protection 3 | . . . 2 10 Ballistic Gun 22 | . 28 27 17 21 Impact Weapon 1 | . . . 3 . Naked Turns . | . . . . . Heaviest Build 56 | 14 48 49 56 56 Greatest Support 40 | 20 40 10 12 12 Greatest Overweight (x) 14 | . 4 4 5 14 Average Overweight (x) 3 | . 1 4 4 4 Largest Inventory Capacity 20 | 8 20 20 20 20 Average Capacity 18 | 8 12 20 20 20 Most Carried 20 | 6 11 12 20 20 Average Carried 15 | 5 8 11 19 19 Final Capacity 20 | 8 20 20 20 20 Final Carried 20 | 6 11 11 20 14 Class Distribution -------------------- 91% | Mutant 8% | Scavenger-Mutant Dominant Class ---------------- Mutant | -10/Materials Mutant | -10/Mines Mutant | -9/Materials Mutant | -9/Mines Resources | -11 -10 -10 -9 -9 ----------- Run | Yrd Mat Min Mat Min Matter Collected 1649 | 250 531 114 508 246 Remotely . | . . . . . Salvage Created 1933 | 111 831 73 649 269 Parts 152 | 11 57 8 57 19 Haulers Intercepted 4 | . 2 . 2 . Recyclers Shooed . | . . . . . Parts Field Recycled . | . . . . . Retrieved Matter . | . . . . . Parts Self-Destructed . | . . . . . Prevented . | . . . . . Kills | -11 -10 -10 -9 -9 ------- Run | Yrd Mat Min Mat Min Combat Hostiles Destroyed 47 | . 16 5 19 7 Guns 33 | . 16 2 12 3 AOE 14 | . . 3 7 4 Classes Destroyed 12 | 1 7 . 3 1 Worker 2 | . . . 1 1 Builder 1 | . 1 . . . Tunneler 7 | 5 . . . 2 Hauler 4 | . 2 . 2 . Recycler 1 | . 1 . . . Operator 3 | . 2 . 1 . Watcher 5 | . 3 . 2 . Swarmer 19 | . 6 3 10 . Grunt 21 | . 10 2 3 6 Duelist 1 | . . . 1 . Sentry 5 | . . . 5 . Demolisher 1 | . . . . 1 Best Kill Streak 7 | 4 4 3 7 3 Combat Bots Only 7 | . 3 3 7 3 Max Kills in Single Turn 3 | 1 2 2 3 2 Gunslinging 1 | . 1 1 . . Exploded 3 | . . 1 3 2 Melee . | . . . . . Uniques/NPCs Destroyed . | . . . . . Combat | -11 -10 -10 -9 -9 -------- Run | Yrd Mat Min Mat Min Hostile Shots Fired 179 | . 69 11 57 42 Missed 42 | . 15 3 21 3 Damage Taken 2339 | . 557 98 390 1294 Core 536 | . 114 6 87 329 Absorbed by Shields . | . . . . . Core Remaining (%) 76 | 100 . 52 . . Volleys Fired 168 | 10 71 13 44 30 Largest 2 | 2 2 2 2 2 Hottest 46 | 40 40 40 46 46 Shots Fired 317 | 20 142 22 83 50 Gun 304 | 20 142 18 79 45 Cannon . | . . . . . Launcher 13 | . . 4 4 5 Special . | . . . . . Kinetic 304 | 20 142 18 79 45 Thermal . | . . . . . Explosive 13 | . . 4 4 5 Electromagnetic . | . . . . . Robot Hit Streak 11 | 6 11 5 11 9 Robot Miss Streak 4 | 1 3 2 4 1 Penetration Max . | . . . . . Secondary Targets 4 | . 1 1 2 . Max Gunslinging Chain 1 | . 1 1 1 . Shots Hit Robots 222 | 14 97 14 58 39 Core Hits 108 | 7 42 9 31 19 Critical Kills . | . . . . . Critical Parts Destroyed 5 | . 2 . . 3 Critical Strikes 5 | . 2 . . 3 Destroy 4 | . 2 . . 2 Smash 1 | . . . . 1 Melee Attacks 16 | . . . 13 3 Impact 16 | . . . 13 3 Slashing . | . . . . . Piercing . | . . . . . Sneak Attacks 2 | . . . 2 . Combat Hostiles . | . . . . . Follow-up Attacks . | . . . . . Damage Inflicted 4014 | 160 1207 344 1502 801 Guns 2773 | 160 1207 149 752 505 Cannons . | . . . . . Explosions 1032 | . . 195 559 278 Melee 209 | . . . 191 18 Ramming . | . . . . . Kinetic 2773 | 160 1207 149 752 505 Thermal . | . . . . . Explosive 1032 | . . 195 559 278 Electromagnetic . | . . . . . Impact 209 | . . . 191 18 Slashing . | . . . . . Piercing . | . . . . . Highest Corruption 1 | . . . 1 1 Average Corruption 1 | . . . 1 1 Corruption Purged . | . . . . . Corruption Blocked . | . . . . . Effects 19 | . . . 7 12 Message Errors 3 | . . . . 3 Matter Fused 6 | . . . 2 4 Heat Flow Errors 1 | . . . . 1 Energy Discharges 3 | . . . 1 2 Data Loss (minor) 5 | . . . 3 2 Alerts 1 | . . . 1 . Overload Shots . | . . . . . Overflow Damage 84 | . . 8 58 18 Projectiles . | . . . . . Explosions 40 | . . 8 32 . Melee 44 | . . . 26 18 Knockbacks . | . . . . . Impact . | . . . . . Kinetic . | . . . . . Secondary . | . . . . . Self-Inflicted Damage 100 | . . 27 . 73 Shots 5 | . . 2 . 3 Rammed . | . . . . . Targets Rammed . | . . . . . Kicked . | . . . . . Crushed . | . . . . . Highest Temperature 118 | . 20 . 6 118 Average Temperature 16 | . 10 . 3 30 Received Heat Transfer 471 | . 243 12 102 114 Siege Activations . | . . . . . Robots Corrupted . | . . . . . Combat Hostiles . | . . . . . Parts Fried . | . . . . . Impact Corruptions 3 | . . . 2 1 Robots Melted . | . . . . . Combat Hostiles . | . . . . . Parts Melted . | . . . . . Heat Transferred . | . . . . . Parts Sabotaged . | . . . . . Parts Stolen . | . . . . . Parts Stripped . | . . . . . Power Chain Reactions . | . . . . . Alert | -11 -10 -10 -9 -9 ------- Run | Yrd Mat Min Mat Min Peak Influence 318 | 25 307 222 318 237 Initial 123 | . 16 79 21 123 Average 105 | 11 175 94 94 73 Maximum Alert Level 1 | . 1 1 1 1 Low Security (%) 79 | 100 58 83 92 73 Level 1 20 | . 41 16 7 26 Level 2 . | . . . . . Level 3 . | . . . . . Level 4 . | . . . . . Level 5 . | . . . . . High Security . | . . . . . Max Security . | . . . . . Squads Dispatched 8 | . 4 1 3 . Investigation 4 | . 2 1 1 . Extermination . | . . . . . Reinforcement 4 | . 2 . 2 . Assault . | . . . . . Garrison . | . . . . . Intercept . | . . . . . Searches Triggered . | . . . . . Construction Impeded . | . . . . . Haulers Reinforced . | . . . . . Active Scanning Responses . | . . . . . Cargo Convoy Interrupts . | . . . . . Stealth | -11 -10 -10 -9 -9 --------- Run | Yrd Mat Min Mat Min Distress Signals 5 | . 1 . 3 1 Communications Jammed . | . . . . . Distress Signals . | . . . . . Times Spotted 95 | . 30 8 40 17 Peak Tracking Total 10 | . 5 3 7 10 Tactical Retreats 3 | . 2 . . 1 Traps | -11 -10 -10 -9 -9 ------- Run | Yrd Mat Min Mat Min Traps Triggered 3 | . 2 . 1 . Indirectly . | . . . . . Trap Hack Attempts . | . . . . . Triggered . | . . . . . Disarmed . | . . . . . Reprogrammed . | . . . . . Reused . | . . . . . Traps Extracted . | . . . . . Installed . | . . . . . Triggered 1 | . . . . 1 Machines | -11 -10 -10 -9 -9 ---------- Run | Yrd Mat Min Mat Min Machines Disabled 2 | . 2 . . . Max in Single Turn 1 | . 1 . . . Machines Repaired . | . . . . . Machines Dismantled . | . . . . . Machines Sabotaged . | . . . . . Overloaded Fab Kills . | . . . . . Hacking | -11 -10 -10 -9 -9 --------- Run | Yrd Mat Min Mat Min Machines Accessed 16 | . 7 1 8 . Terminals 11 | . 5 1 5 . Fabricators . | . . . . . Repair Stations . | . . . . . Recycling Units 3 | . 2 . 1 . Scanalyzers 2 | . . . 2 . Garrison Access . | . . . . . Total Hacks 54 | . 25 3 26 . Successful 32 | . 14 . 18 . Failed 21 | . 10 3 8 . Catastrophic . | . . . . . Database Lockouts 1 | . 1 . . . Manual 34 | . 21 3 10 . Terminals 37 | . 22 3 12 . Fabricators . | . . . . . Repair Stations . | . . . . . Recycling Units 6 | . 3 . 3 . Scanalyzers 11 | . . . 11 . Garrison Access . | . . . . . Terminal Hacks 10 | . 7 . 3 . Part Schematic 3 | . 3 . . . Robot Analysis 2 | . 2 . . . Terminal Index 2 | . 1 . 1 . Alert Level 1 | . . . 1 . Locate Traps 1 | . 1 . . . Recall Reinforcements 1 | . . . 1 . Fabricator Hacks . | . . . . . Repair Station Hacks . | . . . . . Recycling Unit Hacks 3 | . 2 . 1 . Report Inventory 1 | . 1 . . . Retrieve Components 2 | . 1 . 1 . Scanalyzer 9 | . . . 9 . Insert Component 4 | . . . 4 . Analyze 5 | . . . 5 . Garrison Access Hacks . | . . . . . Unauthorized Hacks 10 | . 5 . 5 . Terminals 9 | . 5 . 4 . Assimilate 3 | . 1 . 2 . Botnet 4 | . 3 . 1 . Operators 2 | . 1 . 1 . Fabricators . | . . . . . Repair Stations . | . . . . . Recycling Units 1 | . . . 1 . Reject 1 | . . . 1 . Scanalyzers . | . . . . . Garrison Access . | . . . . . Data Cores Recovered 1 | . . . 1 . Used . | . . . . . Hacking Detections 14 | . 5 1 8 . Full Trace Events 3 | . . 1 2 . Feedback Events 1 | . . . 1 . Corruption 1 | . . . 1 . Feedback Blocked . | . . . . . Robot Schematics Acquired . | . . . . . Robots Built . | . . . . . Authchips . | . . . . . Time . | . . . . . Total Robot Build Rating . | . . . . . Part Schematics Acquired 7 | . 3 . 4 . Parts Built . | . . . . . Authchips . | . . . . . Time . | . . . . . Total Part Build Rating . | . . . . . Parts Repaired . | . . . . . Time . | . . . . . Parts Recycled . | . . . . . Recycled Matter . | . . . . . Retrieved Matter . | . . . . . Retrieved Components 16 | . 9 . 7 . Parts Scanalyzed 4 | . . . 4 . Part Schematics Acquired 4 | . . . 4 . Parts Damaged . | . . . . . Bothacking | -11 -10 -10 -9 -9 ------------ Run | Yrd Mat Min Mat Min Used RIF Installer . | . . . . . Robots Hacked . | . . . . . Non-combat . | . . . . . Combat . | . . . . . Robot Hacks Applied . | . . . . . Relay Couplers Released . | . . . . . Fabnet Peak Effective % . | . . . . . Robots Rewired . | . . . . . Allies Hacked . | . . . . . Hacks Repelled . | . . . . . Allies | -11 -10 -10 -9 -9 -------- Run | Yrd Mat Min Mat Min Total Allies 3 | . . 3 . . Largest Group 3 | . . 3 2 . Highest-Rated Group 40 | . . 40 32 . Highest-Rated Ally 16 | . . 16 16 . Total Orders . | . . . . . Ally Attacks 47 | . . 17 30 . Total Damage 479 | . . 215 264 . Kills 10 | . . 3 7 . Allies Corrupted . | . . . . . Allies Melted . | . . . . . Intel | -11 -10 -10 -9 -9 ------- Run | Yrd Mat Min Mat Min Robot Analysis Total 2 | . 2 . . . Derelict Logs Recovered 3 | . . 1 . 2 Drone Launches . | . . . . . Drone Recoveries . | . . . . . Exploration | -11 -10 -10 -9 -9 ------------- Run | Yrd Mat Min Mat Min Turns Passed 6327 | 97 1358 1053 2327 1492 Spaces Moved 2955 | 48 825 622 954 506 Core 1 | . . . . 1 Treads 56 | . 56 . . . Legs 273 | 48 225 . . . Wheels 2625 | . 544 622 954 505 Hover . | . . . . . Flight . | . . . . . Fastest Speed 95 | 120 95 140 140 135 Average Speed 138 | 120 116 140 151 151 Slowest Speed 750 | 120 160 140 155 750 Overloaded Moves . | . . . . . Propulsion Burnouts . | . . . . . Robots Hopped . | . . . . . Cave-ins Triggered . | . . . . . Exploration Rate (%) 67 | 3 95 95 76 70 Regions Visited 4 Branch Regions 2 Pre-discovered Areas 1 | . . 1 . . Known Exits Taken . | . . . . . Unknown Exits Taken 4 | 1 1 1 1 . Scrap Searched 1 | . . 1 . . Spaces Dug 8 | . . . 8 . Terrain Destroyed 88 | . . 30 32 26 Melee 8 | . . . 8 . Projectile . | . . . . . AOE 80 | . . 30 24 26 Terrain Rammed . | . . . . . Walls Destroyed . | . . . . . Machines Disabled . | . . . . . Actions | -11 -10 -10 -9 -9 --------- Run | Yrd Mat Min Mat Min Total 4841 | 70 1081 782 1726 1182 Wait 1597 | 8 158 142 656 633 Move 2951 | 47 824 621 953 506 Hop . | . . . . . Pick Up 31 | 2 10 2 17 . Fast Attach 6 | 1 1 . 4 . Attach 11 | . 3 . 3 5 Detach 2 | . . . 2 . Swap 34 | . 8 2 20 4 Drop 25 | 2 6 2 14 1 Fire 168 | 10 71 13 44 30 Melee 16 | . . . 13 3 Ram . | . . . . . Kick . | . . . . . Crush . | . . . . . Escape Stasis . | . . . . . Rewire . | . . . . . Trap . | . . . . . Miscellaneous . | . . . . . Route ------- -11/Scrapyard -10/Materials (discovered 5 exits: *Mat x2 / *Min x2 / [*Sub]) -10/Mines (discovered 2 exits: *Mat x2) -9/Materials (discovered 2 exits: [*Mat] / [*Min]) -9/Mines History --------- Turn | Location | Event 1 | -11/Scrapyard | Discovered new exit (range 3) 98 | -11/Scrapyard | Entered Materials 98 | -10/Materials | Discovered new exit (range 14) 311 | -10/Materials | Build established: Mutant 375 | -10/Materials | Discovered new exit (range 12) 667 | -10/Materials | Discovered new exit (range 10) 967 | -10/Materials | Discovered new exit (range 3) 1257 | -10/Materials | Discovered new exit (range 14) 1378 | -10/Materials | Central database locked down 1456 | -10/Materials | Entered Mines 1459 | -10/Mines | Met a Derelict bent on vengeance 1777 | -10/Mines | Discovered new exit (range 16) 1788 | -10/Mines | Assisted by bots powering up and referring to "LRC-V3" 1824 | -10/Mines | Received a Rocket Launcher from a helpful Derelict 1885 | -10/Mines | Learned Materials stockpile data 1985 | -10/Mines | Discovered new exit (range 15) 2355 | -10/Mines | Learned location of Storage (-7) 2509 | -10/Mines | Entered Materials 2509 | -9/Materials | Accompanied by 2 allies 2509 | -9/Materials | Evolved 2 slots: Utility x2 3557 | -9/Materials | Discovered new exit (range 10) 4570 | -9/Materials | Build established: Scavenger-Mutant 4691 | -9/Materials | Discovered new exit (range 3) 4717 | -9/Materials | Destroyed 7 combat bots 4836 | -9/Materials | Entered Mines 5091 | -9/Mines | Build established: Mutant 5106 | -9/Mines | Learned Materials security intel 5150 | -9/Mines | Learned 2 Materials zone layouts 5530 | -9/Mines | Assembled infested the area 5535 | -9/Mines | Assisted by a Guerilla fighting off Assembled 6291 | -9/Mines | Core integrity fell below 50% 6312 | -9/Mines | Core integrity fell below 20% 6328 | -9/Mines | Destroyed by D-53 Grenadier with Mini Grenade Launcher Last Messages --------------- 06300_ K-01 Serf collects debris. 06300_ U-05 Engineer lays Concrete. 06302_ D-53 Grenadier destroyed. 06302_ U-05 Engineer lays Concrete. 06303_ The unstable cave ceiling collapses. 06303_ K-01 Serf destroyed. 06303_ U-05 Engineer lays Concrete. 06304_ The unstable cave ceiling collapses. 06304_ U-05 Engineer lays Concrete. 06307_ The unstable cave ceiling collapses. 06307_ U-05 Engineer lays Concrete. 06312_ Mni. Grenade Launcher destroyed. 06312_ U-05 Engineer destroyed. 06313_ The unstable cave ceiling collapses. 06316_ D-53 Grenadier suffers critical hit (Smash). 06316_ Destroyed Cmb. Airjet. 06316_ D-53 Grenadier system corrupted by crushing effect. 06318_ The unstable cave ceiling collapses. 06319_ Arm. Wheel destroyed. 06327_ The unstable cave ceiling collapses. Map ----- +----------------------------------------------------+ | ????????????????????????? #??????????????????? | | ????????????????????????? #??????????????????? | | ????????????????????????? ???????????????????? | | ?????????????????????????# ???????????????????? | | ?????????????????????????# ???????????????????? | | ?????????????????????????? #???????????????????? | | ?????????????????????????? #???????????????????? | | ??????????????????????????#%*#???????????????????? | | ??????????????????????????# #???????????????????? | | ?????????????????????###### %##??????????????????? | | ???????????????????######## ###??????????####???? | | ??????######??????## ## ####?????????####???? | | ?????########?????# ####???????? ##???? | | ????#### ###?????# ####???????? ##???? | | ???#### ###????#### ###?????# ##???? | | ??#### ####??????## # #???? #^##???? | | ??### #########?## != ##??? # ##???? | | ??## ########### = ##??? ##???? | | ??## ### ##### #?###^ ##????# | | ??### ## # ####### ##?#### | | ???#### ## #= t %%= #### ###### | | ???#### ##### = ### ### | | ??#### ##### % ### | | ?#### ##### *##### | | ?### !!! # ###### d = % | | ?## ! ! #######?## @ *% # | | ?## ! ########## # ####### ## | | ?## !! ########## ######## #### | | ?### #### ######## ##### | | ?#### ##### #### #????### # ####?? | | ??#### ###### ## ! #????###########??? | | ???#### #####?##### ## * ##?????#########???? | | ????#########??##### ###rr ##???????????####???? | | ?????######???????## ### = ####??????????????????? | | ??????????########## ### ###???????????????????? | | ??????????########## ## ###???????????????????? | | ############ ###????##########????? | | ############ ####??################ | | ## ### ######## ######## ####### | | # ######### ###### ## # | | # ##????##### # | | ## """ ###?????###### ### # | | ## """ ###???????##### #### ## ## | | ## """ ###???????##### #### ## ### | | ### ###?########## #### ### | | ?## ########### ######## ### | | ?### ## #### #### ######### | | ?######## ## ### ####????###### | | ??######## ## ###?????###### | | ???????### ### ### ##??????????## | +----------------------------------------------------+ Best States ------------- Heat Dissipation 28 Energy Generation 14 Energy Capacity 250 Matter Stores 300 Matter Capacity 300 Sight Range 16 Robot Scan Range 15 Terrain Scan Density 10 Armor Coverage 150 Evasion (%) 55 Recoil Reduction 2 Item Schematics ----------------- ECM Suite | -10/Materials | Hacked Med. Storage Unit | -10/Materials | Hacked Sml. Storage Unit | -10/Materials | Hacked Hacking Suite | -9/Materials | Scanalyzed Mni. Grenade Launcher | -9/Materials | Scanalyzed Adv. Weight Redist. System | -9/Materials | Scanalyzed Imp. Flight Unit | -9/Materials | Scanalyzed Robot Schematics ------------------ None Fabricated ------------ Nothing Alien Tech Used ----------------- None Achievements -------------- None Challenges ------------ None Game ------ Seed ThrowingBeamCalibrator Manual? 0 Play Time 00:48:23 Cumulative 79.4 hours Start 2024.05.05 @ 15:11:44 End 2024.05.05 @ 17:19:19 Sessions 1 Manual Loads 0 Difficulty Rogue Special Mode None Game No. 56 Rogue 56 Adventurer 0 Explorer 0 Win Type - Total 1 Types 1/0/0/0/0/0/0/0/0 Lore% 51 Gallery% 44 Achievement% 42 Wizard Run 0 Options --------- Layout 0 ASCII 0 Keyboard 0 Movement Mouse Keybinds 0 Fullscreen 1 Font 18/SmallcapsGlow Map View 76x50 Zoom Use 0% Tactical HUD 1 Map Filters NONE Filters NONE Steam 1 RUN: 2a20b17a-84ca-4055-bbf2-f0c2547b4c1c